bitfinex-derivatives/quotes_ETHF0:USTF0_20260207
["timestamp","ask_amount","ask_price","bid_price","bid_amount"]
[1770485587765,0.58548997,2057.6,2055.9,0.53655975]
[1770485588260,0.08462973,2058.0,2055.9,0.53655975]
[1770485588464,0.56943293,2058.7,2056.0,0.53655975]
[1770485588654,0.56943293,2058.7,2056.3,0.53655975]
[1770485588858,0.08459764,2058.9,2056.9,0.53655975]
[1770485589057,0.56943293,2059.3,2056.9,0.53655975]
[1770485589259,0.57432668,2059.3,2056.9,0.54014449]
[1770485589557,0.57432668,2059.3,2057.1,0.53655975]
[1770485589558,0.00489375,2059.3,2057.1,0.53655975]
[1770485590063,0.07926122,2059.8,2057.6,0.53655975]
[1770485590268,0.56943293,2060.2,2058.1,0.53655975]
[1770485590464,0.56943293,2059.7,2058.1,0.53655975]
[1770485590763,0.56943293,2059.7,2057.0,1.42482225]
[1770485590764,0.58112535,2059.2,2057.0,0.53038188]
[1770485590957,1.42482225,2058.8,2057.0,0.53038188]
[1770485591161,0.58112535,2058.7,2057.0,0.53038188]
[1770485591663,0.58112535,2058.2,2056.9,0.00358474]
[1770485591865,0.58112535,2058.2,2056.2,0.53038188]
[1770485592069,0.58112535,2057.7,2056.1,1.25404898]
[1770485592269,0.58112535,2057.7,2055.9,0.53038188]
[1770485592457,1.42482225,2058.1,2055.2,0.53038188]
[1770485592458,0.58112535,2057.2,2055.2,0.53038188]
[1770485592862,0.58580193,2057.2,2055.2,0.00505384]
[1770485593058,0.58580193,2057.2,2054.7,0.53038188]
[1770485593059,0.58112535,2056.7,2054.7,0.53038188]
[1770485593259,0.58112535,2056.7,2053.8,0.53038188]
[1770485593557,1.42482225,2056.8,2053.9,0.53038188]
[1770485593558,0.58112535,2056.2,2053.9,0.53038188]
[1770485593763,0.58112535,2056.1,2053.9,0.53038188]
[1770485594162,0.58112535,2056.1,2053.9,0.53628801]
[1770485594465,0.58112535,2055.6,2053.9,0.00590613]
[1770485594670,0.58491563,2055.6,2053.9,0.53628801]
[1770485594971,0.58491563,2055.6,2053.9,0.00590613]
[1770485595165,0.58112535,2055.4,2052.7,0.53038188]
[1770485595360,0.58112535,2054.9,2052.7,0.53038188]
[1770485595566,0.58112535,2054.9,2052.1,0.53038188]
[1770485596160,0.58112535,2054.9,2052.1,0.5359446]
[1770485596966,0.58112535,2054.7,2052.1,0.5359446]
[1770485597170,0.58112535,2054.6,2052.1,0.5359446]
[1770485597370,0.58112535,2054.6,2052.1,0.00556272]
[1770485597371,0.58112535,2054.5,2052.1,0.00556272]
[1770485597569,0.58112535,2054.5,2052.1,0.5359446]
[1770485597765,0.58112535,2054.5,2052.1,0.00556272]
[1770485598273,0.58112535,2054.5,2052.1,0.5359446]
[1770485599068,0.58112535,2054.4,2052.1,0.5359446]
[1770485599268,0.82473535,2054.0,2052.1,0.00556272]
[1770485599464,0.58112535,2053.9,2052.1,0.00556272]
[1770485599668,0.58112535,2053.6,2050.5,0.08479646]
[1770485599871,0.58112535,2053.5,2051.2,0.53038188]
[1770485600068,0.58112535,2053.5,2051.4,0.6096431]
[1770485600574,0.00349566,2054.0,2051.4,0.61423601]
[1770485600775,0.58462101,2054.0,2051.4,0.61423601]
[1770485600977,0.58462101,2054.0,2051.6,0.53038188]
[1770485601371,0.58462101,2054.0,2051.8,0.53038188]
[1770485602570,0.00349566,2054.0,2051.8,0.53038188]
[1770485604373,0.00349566,2054.0,2051.9,0.53038188]
[1770485605078,0.58112535,2054.7,2052.1,0.53038188]
[1770485605373,0.58112535,2055.0,2052.2,5.86378758]
[1770485605574,0.58112535,2055.0,2052.3,0.53038188]
[1770485605970,0.58714646,2055.0,2052.3,0.53038188]
[1770485609276,0.58714646,2055.0,2052.6,0.53038188]
[1770485609477,0.58714646,2055.0,2053.2,0.53038188]
[1770485609680,0.58714646,2055.0,2053.2,0.53389675]
[1770485610584,0.00602111,2055.0,2053.2,0.53389675]
[1770485610884,0.58112535,2054.9,2053.2,0.53389675]
[1770485612187,0.00602111,2055.0,2053.2,0.53389675]
[1770485612484,0.00602111,2055.0,2053.7,0.53038188]
[1770485612682,0.58714646,2055.0,2053.7,0.53038188]
[1770485616886,0.58714646,2055.0,2053.3,0.57973479]
[1770485617480,0.58714646,2055.0,2053.7,0.57973479]
[1770485617975,0.58714646,2055.0,2053.6,1.42237863]
[1770485617976,0.00602111,2055.0,2054.1,0.57973479]
[1770485618183,0.56829931,2056.2,2054.1,0.57973479]
[1770485618381,0.56829931,2056.1,2054.1,0.57973479]
[1770485619187,0.57188534,2056.1,2054.1,0.57973479]
[1770485619388,0.57188534,2056.1,2054.5,0.57973479]
[1770485622189,0.56829931,2055.8,2053.7,0.57973479]
[1770485622389,0.56829931,2055.3,2053.7,0.57973479]
[1770485622592,0.56829931,2055.2,2053.7,0.57973479]
[1770485623392,0.56829931,2055.0,2053.3,0.57973479]
[1770485624201,0.56829931,2054.9,2053.3,0.57973479]
[1770485626002,0.56829931,2054.8,2053.3,0.57973479]
[1770485627602,0.56829931,2055.3,2053.4,0.57973479]
[1770485628808,0.56829931,2055.3,2053.6,0.57973479]
[1770485629706,0.56829931,2055.3,2053.8,0.57973479]
[1770485629901,0.56829931,2055.3,2054.1,0.57973479]
[1770485630705,7.09162307,2055.4,2054.1,0.57973479]
[1770485630706,0.56829931,2055.2,2054.1,0.57973479]
[1770485631902,0.56829931,2055.1,2053.9,0.57973479]
[1770485632105,0.56829931,2055.0,2053.5,0.57973479]
[1770485632304,0.56829931,2054.9,2053.5,0.57973479]
[1770485632806,0.56829931,2054.5,2053.3,0.57973479]
[1770485633004,0.57413344,2054.5,2053.3,0.57973479]
[1770485635307,0.57413344,2054.5,2053.2,5.24835081]
[1770485635510,0.57413344,2054.5,2053.2,0.58324966]
[1770485637213,0.00583413,2054.5,2053.2,0.58324966]
[1770485637410,25.70965336,2055.0,2053.6,0.57973479]
[1770485637603,0.56829931,2055.1,2053.8,0.57973479]
[1770485638009,0.56829931,2054.9,2053.8,0.57973479]
[1770485638613,0.56829931,2054.6,2053.3,0.57973479]
[1770485639110,0.56829931,2054.7,2053.4,0.57973479]
[1770485641011,0.56829931,2054.6,2053.4,0.57973479]
[1770485641613,0.56829931,2054.5,2053.4,0.57973479]
[1770485642511,0.56829931,2054.5,2053.2,0.00351487]
[1770485642706,0.56829931,2054.5,2053.3,0.57973479]
[1770485643511,0.56829931,2054.7,2053.3,0.57973479]
[1770485643720,0.56829931,2054.8,2053.6,0.57973479]
[1770485645311,0.00607769,2054.9,2053.8,0.57973479]
[1770485645511,0.00607769,2054.9,2054.0,0.53212079]
[1770485646819,0.00607769,2054.9,2054.1,0.53212079]
[1770485648116,0.00607769,2054.9,2053.8,10.33990312]
[1770485648117,0.58761103,2054.8,2053.8,2.9087607]
[1770485648320,0.58761103,2054.8,2053.9,0.53212079]
[1770485652322,0.00607769,2054.9,2054.0,0.55033632]
[1770485652921,0.53671092,2054.9,2054.0,0.55033632]
[1770485654126,0.00607769,2054.9,2054.0,0.55033632]
[1770485655519,7.09162307,2055.4,2054.0,0.55033632]
[1770485655725,7.6222563,2055.6,2054.2,0.55033632]
[1770485655925,0.53063323,2055.5,2054.4,0.55033632]
[1770485656617,0.53646998,2055.5,2054.4,0.55033632]
[1770485656820,0.53063323,2055.4,2054.2,0.55033632]
[1770485657220,0.53063323,2055.3,2054.2,0.55033632]
[1770485658930,0.00583675,2055.5,2054.2,3.45909702]
[1770485659229,0.53646998,2055.5,2054.3,0.55033632]
[1770485663531,0.53646998,2055.5,2054.4,0.55033632]
[1770485664132,0.53646998,2055.5,2054.0,0.55033632]
[1770485665428,0.53063323,2055.4,2054.0,0.55033632]
[1770485668642,0.53063323,2055.4,2054.1,0.55033632]
[1770485668839,0.53063323,2055.4,2054.2,3.45909702]
[1770485669038,0.53063323,2055.4,2054.3,0.55033632]
[1770485670742,0.53063323,2055.4,2054.4,0.55033632]
[1770485671441,0.53646998,2055.5,2054.4,0.55033632]
[1770485672735,0.00583675,2055.5,2054.4,0.55033632]
[1770485673146,0.53646998,2055.5,2054.5,0.55033632]
[1770485673346,0.53646998,2055.5,2054.6,0.55033632]
[1770485673646,0.53646998,2055.5,2054.7,0.55033632]
[1770485673851,0.00583675,2055.5,2054.7,0.55480768]
[1770485674953,0.00583675,2055.5,2054.7,3.46356838]
[1770485675250,0.00583675,2055.5,2054.8,0.55033632]
[1770485678249,0.55921607,2055.5,2054.8,0.55033632]
[1770485682657,0.00583675,2055.5,2054.8,0.55033632]
[1770485682862,0.55337932,2056.0,2054.8,0.55033632]
[1770485683159,0.55337932,2056.0,2054.9,0.58378918]
[1770485683360,0.55337932,2056.0,2055.1,0.58378918]
[1770485683957,0.55745306,2056.0,2055.1,0.58378918]
[1770485684456,0.00407374,2056.0,2055.1,0.58378918]
[1770485685458,0.00407374,2056.0,2055.3,0.58378918]
[1770485685856,0.55745306,2056.0,2055.3,0.58378918]
[1770485686056,0.55745306,2056.0,2055.1,0.58378918]
[1770485687763,0.55745306,2056.0,2055.0,0.58378918]
[1770485688762,0.55745306,2056.0,2054.8,0.58378918]
[1770485689059,0.55337932,2055.9,2054.8,0.58378918]
[1770485691164,0.55337932,2055.9,2054.9,0.58378918]
[1770485697467,0.55337932,2055.9,2055.1,0.58378918]
[1770485698967,0.00407374,2056.0,2055.2,0.58378918]
[1770485699167,0.55745306,2056.0,2055.2,0.58378918]
[1770485700569,0.55745306,2056.0,2055.3,0.58378918]
[1770485700570,0.00407374,2056.0,2055.3,0.58378918]
[1770485701459,7.28380731,2056.3,2055.3,5.23209627]
[1770485701663,0.55337932,2056.2,2055.2,7.26010189]
[1770485701972,0.55337932,2056.2,2055.3,0.58378918]
[1770485702167,7.83718663,2056.3,2055.3,0.58378918]
[1770485702372,7.28380731,2056.3,2055.3,0.58378918]
[1770485702572,0.55337932,2056.2,2055.3,0.58378918]
[1770485703262,0.55337932,2056.2,2055.3,5.23151849]
[1770485703459,0.55337932,2056.2,2055.4,0.58378918]
[1770485706966,0.00483941,2056.3,2055.4,0.58378918]
[1770485707166,0.54584782,2056.3,2055.4,0.58378918]
[1770485707368,0.54584782,2056.3,2055.6,0.57905351]
[1770485707369,0.00483941,2056.3,2055.6,0.57905351]
[1770485707768,7.09162307,2057.2,2056.0,0.57905351]
[1770485707975,7.09162307,2057.7,2056.5,0.57905351]
[1770485708169,0.54100841,2057.7,2056.5,0.57905351]
[1770485708769,0.54662295,2057.7,2056.5,0.58442428]
[1770485708970,0.00561454,2057.7,2056.7,3.474775]
[1770485709274,0.00561454,2057.7,2056.9,0.57905351]
[1770485709662,0.54100841,2058.5,2056.9,0.57905351]
[1770485709870,0.54100841,2058.5,2057.1,0.57905351]
[1770485710069,0.54100841,2058.5,2057.2,0.57905351]
[1770485710670,0.54570243,2058.5,2057.2,0.57905351]
[1770485711674,0.54570243,2058.5,2056.8,2.89572149]
[1770485711866,0.54570243,2058.5,2056.6,0.58682993]
[1770485712580,0.54570243,2058.5,2056.7,0.58682993]
[1770485715470,0.53574955,2058.3,2056.5,0.00537077]
[1770485715669,0.53574955,2058.3,2056.5,0.5922007]
[1770485718183,8.083,2058.1,2056.5,0.00537077]
[1770485718377,0.53574955,2058.0,2056.5,0.5922007]
[1770485718773,0.53574955,2058.0,2056.5,0.00537077]
[1770485718976,0.53574955,2058.0,2056.5,0.5922007]
[1770485724383,0.00469402,2058.5,2056.6,3.48255142]
[1770485724584,0.53574955,2058.4,2056.6,0.58682993]
[1770485724984,0.53574955,2058.4,2056.7,0.58682993]
[1770485725386,0.53574955,2058.4,2056.8,0.58682993]
[1770485726285,0.53574955,2058.4,2056.9,0.58682993]
[1770485726787,0.00469402,2058.5,2057.0,0.58682993]
[1770485727386,0.54044357,2058.5,2057.0,0.58682993]
[1770485729290,0.54044357,2058.5,2057.1,0.58682993]
[1770485732088,0.00469402,2058.5,2057.1,0.58682993]
[1770485732283,0.54044357,2058.5,2057.1,3.48255142]
[1770485732488,0.54044357,2058.5,2057.2,0.58682993]
[1770485734488,0.54044357,2058.5,2057.3,0.58682993]
[1770485735291,0.54044357,2058.5,2057.4,0.58682993]
[1770485735694,0.54044357,2058.5,2057.0,0.56911274]
[1770485736091,0.00469402,2058.5,2057.2,0.56911274]
[1770485736295,0.00469402,2058.5,2057.1,2.89572149]
[1770485736296,0.56412098,2059.2,2057.6,0.56911274]
[1770485736485,0.56412098,2059.2,2057.7,0.56911274]
[1770485736795,0.56412098,2059.4,2057.8,0.56911274]
[1770485737095,0.56412098,2059.4,2057.9,0.56911274]
[1770485737394,0.56936289,2059.4,2058.0,0.56911274]
[1770485737585,0.56936289,2059.4,2058.0,0.57256793]
[1770485739686,0.56936289,2059.4,2058.0,0.00345519]
[1770485739892,0.56936289,2059.4,2058.0,0.57256793]
[1770485743792,0.56936289,2059.4,2058.0,0.00345519]
[1770485743992,0.56936289,2059.4,2058.0,0.57256793]
[1770485744496,0.56936289,2059.4,2058.0,0.00345519]
[1770485744697,7.66098596,2059.4,2058.0,0.00345519]
[1770485744891,0.56412098,2059.1,2058.0,0.00345519]
[1770485745698,0.56412098,2059.1,2058.0,0.57256793]
[1770485746286,0.00524191,2059.4,2058.0,0.57256793]
[1770485746485,0.56936289,2059.4,2058.0,0.57256793]
[1770485750293,0.56412098,2059.2,2058.0,0.57256793]
[1770485750494,0.56412098,2059.2,2058.1,0.56911274]
[1770485751193,0.56412098,2059.2,2058.0,0.57256793]
[1770485752594,0.24821191,2059.4,2058.0,0.57256793]
[1770485752595,0.56936289,2059.4,2058.0,0.57256793]
[1770485753200,0.56936289,2059.4,2058.1,0.56911274]
[1770485753398,0.56936289,2059.4,2058.2,0.56911274]
[1770485753996,0.56936289,2059.4,2058.3,0.56911274]
[1770485754998,0.56936289,2059.4,2058.4,0.56911274]
[1770485760403,0.56936289,2059.4,2058.2,0.56911274]
[1770485760707,0.56936289,2059.4,2058.3,0.56911274]
[1770485761608,0.56412098,2059.2,2058.1,0.56911274]
[1770485763406,0.56412098,2059.1,2058.1,0.56911274]
[1770485766015,0.56412098,2059.1,2058.1,0.58091963]
[1770485766918,0.56412098,2059.1,2058.2,0.58091963]
[1770485767322,0.56412098,2059.1,2058.3,0.58091963]
[1770485767710,0.56412098,2059.1,2058.2,4.60358752]
[1770485767916,0.5701653,2059.3,2058.3,0.58091963]
[1770485768322,6.50985483,2059.5,2058.3,0.58091963]
[1770485768624,0.5701653,2059.6,2058.5,0.54901649]
[1770485768809,0.5701653,2059.6,2058.6,0.54901649]
[1770485769414,0.57553351,2059.6,2058.6,0.54901649]
[1770485773526,0.57553351,2059.6,2058.7,0.54621287]
[1770485774323,9.16830226,2060.7,2059.4,0.54289869]
[1770485774521,0.54656317,2060.9,2059.6,0.54289869]
[1770485775216,0.5511443,2060.9,2059.6,0.54840725]
[1770485776227,0.5511443,2060.9,2059.8,0.54635127]
[1770485777323,0.00458113,2060.9,2059.8,0.54635127]
[1770485777723,0.5511443,2060.9,2059.8,0.54635127]
[1770485777924,0.00458113,2060.9,2059.8,0.54635127]
[1770485778127,0.5511443,2060.9,2059.8,0.54635127]
[1770485778725,0.5511443,2060.9,2059.6,0.54910843]
[1770485779231,0.5511443,2060.9,2059.6,0.00550856]
[1770485781131,0.54656317,2060.5,2059.6,8.56e-06]
[1770485781729,0.54656317,2060.5,2059.6,0.54329071]
[1770485782633,0.54656317,2060.5,2059.6,8.56e-06]
[1770485783228,0.54656317,2060.5,2058.8,0.54635127]
[1770485783733,4.874,2061.2,2058.8,0.54635127]
[1770485783734,7.90110759,2062.5,2060.5,0.00151823]
[1770485784030,14.5584,2062.4,2061.4,4.27689561]
[1770485784236,0.58705471,2062.8,2061.5,2.85911168]
[1770485784421,22.44910759,2062.7,2061.4,1.41778393]
[1770485784625,0.00548237,2062.7,2061.4,4.28065048]
[1770485784828,8.44767076,2062.9,2061.6,0.54635127]
[1770485785023,0.54656317,2062.8,2061.6,0.54635127]
[1770485785430,0.54656317,2062.6,2061.6,0.54635127]
[1770485785835,0.54656317,2062.4,2061.6,0.54635127]
[1770485786030,0.54656317,2062.4,2061.4,0.55010614]
[1770485786231,0.54656317,2062.2,2061.4,0.00375487]
[1770485786631,15.09696317,2062.1,2061.4,0.55010614]
[1770485786830,0.54656317,2062.1,2061.4,0.55010614]
[1770485787132,14.5504,2062.0,2061.4,0.55010614]
[1770485787336,7.90110759,2062.2,2061.4,0.55010614]
[1770485787935,15.09696317,2062.1,2061.4,0.55010614]
[1770485788334,14.5504,2062.0,2061.4,0.55010614]
[1770485788525,22.45150759,2062.1,2061.4,0.55010614]
[1770485788728,7.90110759,2062.1,2061.4,0.55010614]
[1770485788930,22.45150759,2062.0,2061.4,0.55010614]
[1770485789232,7.90110759,2062.0,2061.4,0.55010614]
[1770485789434,0.54656317,2062.2,2061.4,0.55010614]
[1770485789634,22.45150759,2062.1,2061.4,0.55010614]
[1770485789835,0.54656317,2062.4,2061.4,0.55010614]
[1770485790138,22.45070759,2062.3,2061.4,0.55010614]
[1770485790338,14.5504,2062.2,2061.4,0.55010614]
[1770485790539,0.54656317,2062.4,2061.4,0.55010614]
[1770485790836,22.45070759,2062.5,2061.4,0.55010614]
[1770485791038,14.5496,2062.4,2061.4,0.55010614]
[1770485791438,0.00543819,2062.6,2061.4,0.00375487]
[1770485791731,17.91339879,2062.4,2061.4,0.00375487]
[1770485791925,7.90110759,2062.4,2061.4,0.00375487]
[1770485792131,8.48817926,2062.4,2061.4,0.00375487]
[1770485792324,0.58707167,2062.3,2061.4,0.00375487]
[1770485792527,0.58707167,2062.2,2061.4,0.00375487]
[1770485792727,7.90110759,2062.2,2061.4,0.00375487]
[1770485792931,8.48817926,2062.2,2061.4,0.00375487]
[1770485793130,0.58707167,2062.0,2060.9,0.34410333]
[1770485793330,0.58707167,2062.0,2060.6,2.83108028]
[1770485793531,18.50047046,2061.9,2060.6,3.17377901]
[1770485793731,0.58707167,2061.9,2060.7,0.00102275]
[1770485794133,0.58654333,2061.7,2060.8,0.00102275]
[1770485794333,0.58654333,2062.4,2060.8,0.00102275]
[1770485794734,0.58654333,2062.2,2060.8,0.00102275]
[1770485795135,0.58654333,2062.0,2060.8,0.00102275]
[1770485795538,0.58654333,2061.8,2060.8,0.00102275]
[1770485795936,18.49973563,2061.7,2060.8,0.00102275]
[1770485796138,0.58633684,2061.7,2060.8,0.00102275]
[1770485796340,8.48744443,2061.7,2060.8,0.00102275]
[1770485796535,8.48744443,2061.7,2060.7,0.00508619]
[1770485796536,10.54512035,2061.6,2060.7,0.00508619]
[1770485796737,0.53282915,2061.5,2060.7,0.00508619]
[1770485797040,0.53282915,2061.4,2060.7,0.48077035]
[1770485797242,10.54512035,2061.4,2060.7,0.48077035]
[1770485797442,10.0122912,2061.3,2060.7,0.48077035]
[1770485797642,10.0122912,2061.3,2060.7,0.00508619]
[1770485797643,18.44622794,2061.3,2060.7,0.00508619]
[1770485797842,10.54512035,2061.2,2060.5,0.47493587]
[1770485798045,7.90110759,2061.1,2060.5,0.47493587]
[1770485798244,18.44622794,2061.1,2060.5,0.47493587]
[1770485798445,10.0122912,2061.0,2060.5,0.47493587]
[1770485798650,10.54512035,2061.0,2060.2,10.26829805]
[1770485798838,17.91339879,2060.9,2060.2,10.27275944]
[1770485799239,10.0122912,2060.8,2060.2,10.61480464]
[1770485799443,10.59982564,2060.8,2060.2,10.61480464]
[1770485799640,10.59982564,2060.7,2060.2,10.61480464]
[1770485799839,10.0122912,2060.8,2060.2,10.92891288]
[1770485800242,17.91339879,2060.8,2060.3,0.31410824]
[1770485800746,0.53282915,2060.6,2060.2,10.61480464]
[1770485801039,0.53282915,2060.6,2060.2,3.64228784]
[1770485801239,0.53282915,2060.4,2060.2,0.00446139]
[1770485801443,0.53282915,2060.4,2059.5,1.68858208]
[1770485801643,8.77678909,2060.3,2059.0,0.58753443]
[1770485801843,8.77678909,2060.5,2059.1,0.58728732]
[1770485802045,8.77678909,2060.4,2059.1,0.58728732]
[1770485802248,8.77678909,2060.5,2059.1,0.58728732]
[1770485802446,8.77678909,2060.5,2059.1,0.59222005]
[1770485802745,8.77678909,2060.4,2059.1,0.59222005]
[1770485802946,8.77678909,2060.5,2059.1,0.59222005]
[1770485803348,8.77678909,2060.4,2059.1,0.00493273]
[1770485803544,8.77678909,2060.5,2059.1,0.00493273]
[1770485803742,8.77678909,2059.2,2059.1,0.00126527]
[1770485803936,8.77678909,2059.2,2058.6,0.58728732]
[1770485804138,8.77678909,2059.1,2058.4,0.58753444]
[1770485804336,8.77678909,2059.0,2057.8,0.58753444]
[1770485804545,8.77678909,2060.1,2057.8,0.58753444]
[1770485804849,8.78055506,2060.1,2057.8,0.59287037]
[1770485805143,8.77678909,2060.0,2057.9,0.58753444]
[1770485805547,8.77678909,2059.9,2057.9,0.58753444]
[1770485805846,8.77678909,2060.0,2057.9,0.58753444]
[1770485806343,8.77678909,2059.9,2057.9,0.58753444]
[1770485806542,8.77678909,2060.0,2057.9,0.58753444]
[1770485806741,8.77678909,2060.0,2058.0,0.59025956]
[1770485807045,8.77678909,2059.9,2058.0,0.59025956]
[1770485807343,8.77678909,2060.0,2058.0,0.59025956]
[1770485807744,0.02943888,2059.8,2058.0,0.59025956]
[1770485808246,8.77678909,2059.7,2058.0,0.59025956]
[1770485808645,8.77678909,2059.6,2058.0,0.59025956]
[1770485808846,8.77678909,2059.7,2058.0,0.59025956]
[1770485809148,8.77678909,2059.6,2058.2,0.57611717]
[1770485809348,8.80622797,2060.0,2058.2,0.57611717]
[1770485809646,8.77678909,2059.9,2058.2,0.57611717]
[1770485810250,8.77678909,2059.8,2058.2,0.57611717]
[1770485810746,0.03262962,2059.9,2058.3,0.57611717]
[1770485810747,8.77678909,2059.7,2058.3,0.57611717]
[1770485811051,8.77678909,2059.8,2058.3,0.57611717]
[1770485811251,0.00376597,2060.1,2058.4,0.57611717]
[1770485811252,8.77678909,2060.0,2058.4,0.57611717]
[1770485811542,0.00376597,2060.1,2058.4,0.57611717]
[1770485811543,8.77678909,2059.9,2058.4,0.57611717]
[1770485811749,8.77678909,2060.0,2058.4,6.29434053]
[1770485811949,8.77678909,2060.0,2058.5,0.5773334]
[1770485812146,8.77678909,2059.9,2058.5,0.5773334]
[1770485812344,8.77678909,2060.0,2058.5,0.5773334]
[1770485812746,8.77678909,2059.9,2058.5,0.5773334]
[1770485812947,0.00376597,2060.1,2058.5,0.5773334]
[1770485812948,8.77678909,2060.0,2058.5,0.5773334]
[1770485813452,8.77678909,2059.9,2058.5,0.5773334]
[1770485813749,8.77678909,2060.0,2058.5,0.5773334]
[1770485813945,8.77678909,2060.0,2058.6,0.58135632]
[1770485814145,0.00376597,2060.1,2058.7,0.58135632]
[1770485814342,8.77678909,2060.0,2058.7,0.58135632]
[1770485814848,8.77678909,2059.9,2058.8,0.58135632]
[1770485815149,8.77678909,2060.1,2059.0,0.57947334]
[1770485815458,8.77678909,2060.1,2059.1,0.57947334]
[1770485815651,7.24525465,2060.1,2059.2,0.57611717]
[1770485815954,6.0758283,2060.1,2059.3,0.57611717]
[1770485816253,5.50838717,2060.1,2059.3,0.58137132]
[1770485816647,0.58753443,2061.3,2059.4,5.71822336]
[1770485816852,0.58753443,2061.5,2059.6,5.71822336]
[1770485817051,0.58753443,2061.5,2059.7,10.89472342]
[1770485817251,0.58753443,2061.5,2059.8,5.17650006]
[1770485817454,0.58753443,2061.5,2059.8,10.89472342]
[1770485817652,0.59381336,2061.5,2060.0,0.00086448]
[1770485817951,0.59381336,2061.5,2060.2,0.00086448]
[1770485818151,0.53282915,2062.2,2060.6,0.57611717]
[1770485818749,0.53282915,2062.2,2060.7,0.57611717]
[1770485819150,0.53809107,2062.2,2060.7,0.57611717]
[1770485819753,0.00526192,2062.2,2060.7,0.57611717]
[1770485819954,0.53809107,2062.2,2061.0,0.57611717]
[1770485820150,0.53809107,2062.2,2061.0,0.58095731]
[1770485820753,0.00526192,2062.2,2061.1,0.57611717]
[1770485821053,0.00526192,2062.2,2061.1,6.29434053]
[1770485821255,0.53282915,2062.8,2061.5,0.57611717]
[1770485821457,0.53282915,2062.8,2061.6,0.57611717]
[1770485821849,0.53282915,2062.8,2061.7,0.57611717]
[1770485822055,0.53282915,2064.1,2061.7,0.57611717]
[1770485822258,0.53680006,2064.1,2061.7,0.57611717]
[1770485822456,0.53680006,2064.1,2061.8,0.57611717]
[1770485823256,0.53680006,2064.1,2061.9,0.57611717]
[1770485823656,0.53680006,2064.1,2062.0,0.57611717]
[1770485824350,0.53680006,2064.1,2062.1,0.57611717]
[1770485826256,0.53680006,2064.1,2062.0,5.14847107]
[1770485826558,0.53680006,2064.1,2062.1,0.57930809]
[1770485828063,0.00397091,2064.1,2062.1,0.57930809]
[1770485828249,0.54155106,2064.1,2062.1,0.57930809]
[1770485830058,0.00397091,2064.1,2062.5,0.57930809]
[1770485830254,0.00397091,2064.1,2062.5,5.72231681]
[1770485830457,0.00397091,2064.1,2062.5,0.58395749]
[1770485830653,0.53758015,2064.9,2063.0,0.57930809]
[1770485831157,0.53758015,2064.9,2062.7,5.11293999]
[1770485831460,0.53758015,2064.9,2062.5,0.5590006]
[1770485831760,0.5433888,2064.9,2062.8,0.5543512]
[1770485832162,0.5433888,2064.9,2063.3,0.5543512]
[1770485832365,0.53658395,2064.9,2063.3,0.5543512]
[1770485832755,1.11379,2066.7,2062.9,0.24256]
[1770485832756,0.7728953,2066.7,2063.8,0.39502235]
[1770485832957,0.5307753,2066.4,2064.3,0.39502235]
[1770485833464,0.5307753,2066.3,2064.3,0.39502235]
[1770485833653,0.5307753,2066.1,2064.3,0.39502235]
[1770485833859,1.11381,2066.6,2064.3,0.00586278]
[1770485833860,0.5307753,2065.9,2064.3,0.00586278]
[1770485834259,0.5307753,2065.9,2064.3,0.3832849]
[1770485834461,0.5307753,2065.9,2064.3,0.00586278]
[1770485834861,0.5307753,2065.7,2064.3,0.00586278]
[1770485835964,0.5307753,2065.7,2063.6,0.37742212]
[1770485836969,0.5307753,2065.7,2063.6,0.38244346]
[1770485837467,0.5307753,2065.7,2063.8,0.37991582]
[1770485837870,0.5307753,2065.7,2064.1,0.3580759]
[1770485838664,0.5307753,2066.2,2064.1,0.3580759]
[1770485840662,0.5307753,2066.1,2064.1,0.3580759]
[1770485840862,0.5307753,2065.9,2064.1,0.3580759]
[1770485841070,0.5307753,2065.8,2063.7,0.35530508]
[1770485841564,0.5307753,2065.7,2063.7,0.35530508]
[1770485841759,0.5307753,2065.7,2063.6,0.00502134]
[1770485842264,0.5307753,2065.7,2063.6,0.36444375]
[1770485843965,0.5307753,2065.7,2063.7,0.35740684]
[1770485846872,0.5307753,2065.7,2063.9,0.29591363]
[1770485847173,0.5307753,2065.7,2064.1,0.29591363]
[1770485847374,0.5307753,2065.7,2064.2,0.29591363]
[1770485847972,0.5307753,2066.0,2064.3,0.29959717]
[1770485848275,0.5307753,2066.0,2064.4,0.29959717]
[1770485848473,0.5307753,2066.0,2064.5,0.29959717]
[1770485849078,0.5307753,2066.0,2064.1,0.29959717]
[1770485849271,0.5307753,2066.0,2064.2,0.29959717]
[1770485849766,0.5307753,2066.0,2064.2,5.44053505]
[1770485849966,0.5307753,2066.0,2064.2,0.29959717]
[1770485850378,0.5307753,2066.0,2064.0,4.21494876]
[1770485850677,0.5307753,2066.0,2064.1,0.29459613]
[1770485850975,0.5307753,2066.0,2064.2,0.29459613]
[1770485851174,0.5307753,2066.0,2064.3,0.29459613]
[1770485852169,0.5307753,2066.0,2064.1,9.66578438]
[1770485852381,0.5307753,2066.0,2064.0,0.29574806]
[1770485852583,0.5307753,2066.0,2064.1,0.29574806]
[1770485853082,0.5307753,2066.0,2064.2,0.29574806]
[1770485853284,0.5307753,2066.0,2064.3,0.29574806]
[1770485853882,0.5307753,2066.0,2064.4,0.29732607]
[1770485854087,0.5307753,2066.0,2064.5,0.29732607]
[1770485854282,0.5307753,2066.0,2064.7,0.29732607]
[1770485854785,0.5307753,2066.0,2064.6,9.37493487]
[1770485854985,0.5307753,2066.0,2064.6,9.67226094]
[1770485855187,0.5307753,2066.0,2064.7,9.37493487]
[1770485855386,0.5307753,2066.0,2064.8,0.29727171]
[1770485855888,0.5307753,2066.0,2064.7,9.6683517]
[1770485856081,0.5307753,2066.0,2064.6,4.21494876]
[1770485856282,0.5307753,2066.0,2064.6,9.67837246]
[1770485856481,0.5307753,2066.0,2064.7,5.17000687]
[1770485856681,0.5307753,2066.0,2064.6,0.29341683]
[1770485856881,0.5307753,2066.0,2064.6,5.46337351]
[1770485857289,0.5307753,2066.0,2064.7,5.16995668]
[1770485857690,0.5307753,2066.0,2064.8,5.17571804]
[1770485857990,0.5307753,2066.0,2064.6,4.88946863]
[1770485858191,0.5307753,2066.0,2064.7,9.39194965]
[1770485858487,0.5307753,2066.0,2064.8,5.47147028]
[1770485858687,0.5307753,2066.0,2064.9,5.47147028]
[1770485858884,0.5307753,2066.0,2064.9,0.29446939]
[1770485859090,0.5307753,2066.0,2065.1,0.29446939]
[1770485859291,0.5307753,2066.0,2065.3,0.29446939]
[1770485859491,0.5307753,2066.0,2065.4,5.47821881]
[1770485859686,0.5307753,2066.0,2065.2,4.21494876]
[1770485859886,0.5307753,2066.0,2065.1,0.00403642]
[1770485860088,0.5307753,2066.0,2065.1,0.28757339]
[1770485860287,0.5307753,2066.0,2065.3,0.28353697]
[1770485860490,0.5307753,2066.0,2065.4,5.37647699]
[1770485860686,0.53572871,2066.2,2065.5,5.09294002]
[1770485860885,0.53572871,2066.2,2065.6,5.09294002]
[1770485861087,0.53572871,2066.2,2065.4,4.21494876]
[1770485861284,0.53572871,2066.2,2065.6,0.28353697]
[1770485861489,0.53572871,2066.2,2065.6,5.0734325]
[1770485862391,0.53572871,2066.2,2065.5,2.85802023]
[1770485862592,0.00621863,2066.3,2065.4,2.85802023]